bitfinex/quotes_SOLUSD_20220114
["timestamp","ask_amount","ask_price","bid_price","bid_amount"]
[1642176308295,10.2015,147.08,147.0,2.719]
[1642176308495,10.2015,147.08,146.98,2.72]
[1642176308794,10.2015,147.08,146.98,28.8593283]
[1642176308999,10.2015,147.08,146.99,2.72]
[1642176309396,10.2015,147.08,146.99,8.97]
[1642176310700,10.2015,147.08,146.99,19.1716]
[1642176314509,9.79,147.09,146.99,19.1716]
[1642176315309,9.79,147.09,146.99,20.84545037]
[1642176315509,9.79,147.09,146.99,7.67385037]
[1642176315708,9.79,147.09,146.99,6.0]
[1642176315709,10.2032,147.06,146.99,6.0]
[1642176316113,10.2032,147.06,146.97,20.06032929]
[1642176316313,10.2032,147.06,146.97,16.2026]
[1642176316913,10.2032,147.06,146.97,16.4526]
[1642176317315,10.2032,147.06,146.98,2.72]
[1642176317514,10.2032,147.06,146.98,8.97]
[1642176317916,10.2032,147.06,146.98,6.25]
[1642176318415,10.2032,147.06,146.98,0.25]
[1642176318816,10.2032,147.06,146.96,8.97]
[1642176319615,10.2032,147.06,146.96,19.1736]
[1642176320416,10.2032,147.06,146.96,20.84842137]
[1642176322847,10.2019,147.08,146.96,20.84842137]
[1642176323046,12.9219,147.08,146.96,20.84842137]
[1642176323646,12.9219,147.08,146.96,88.84842137]
[1642176324253,12.9219,147.08,146.96,20.84842137]
[1642176326856,2.72,147.08,146.96,20.84842137]
[1642176327254,2.72,147.08,146.96,30.89842137]
[1642176327456,10.2004,147.1,146.96,30.89842137]
[1642176327656,12.9204,147.1,146.96,30.89842137]
[1642176328155,12.9204,147.1,146.96,30.63842137]
[1642176328655,13.1704,147.1,146.96,30.63842137]
[1642176328854,37.1517,147.1,146.96,30.63842137]
[1642176330958,9.79,147.09,146.96,28.9636]
[1642176331159,10.2046,147.04,146.96,6.0]
[1642176331557,2.721,147.03,146.96,6.0]
[1642176331958,2.721,147.06,146.96,6.0]
[1642176332162,2.721,147.06,146.93,82.71797183]
[1642176332559,2.721,147.06,146.93,82.96797183]
[1642176332759,10.2051,147.03,146.95,10.2046]
[1642176332958,10.2051,147.03,146.95,0.25]
[1642176333160,10.2051,147.03,146.95,6.25]
[1642176333760,10.2051,147.03,146.95,0.25]
[1642176334161,10.2051,147.03,146.94,8.97]
[1642176334361,10.2051,147.03,146.94,19.1753]
[1642176334961,19.9937,147.05,146.94,19.1753]
[1642176335862,19.9937,147.05,146.93,75.89327183]
[1642176336062,9.79,147.05,146.95,1.67482137]
[1642176336362,9.79,147.08,147.0,10.2011]
[1642176337165,9.79,147.08,146.97,2.72]
[1642176337368,19.9913,147.08,146.98,10.202]
[1642176337564,19.9913,147.08,146.98,16.452]
[1642176338465,20.2413,147.08,146.98,16.452]
[1642176340772,20.2413,147.08,146.98,6.25]
[1642176340968,26.2413,147.08,146.98,0.25]
[1642176341170,94.2413,147.08,146.98,6.25]
[1642176341370,94.2413,147.08,146.98,6.0]
[1642176341570,95.94207588,147.08,146.98,6.25]
[1642176341769,95.94207588,147.08,146.98,0.25]
[1642176341971,2.72,147.07,146.98,0.25]
[1642176342169,10.2049,147.03,146.97,8.72]
[1642176342571,10.4549,147.03,146.97,8.72]
[1642176342770,10.2049,147.03,146.97,8.72]
[1642176343171,10.2049,147.03,146.97,6.0]
[1642176343370,10.2036,147.05,146.97,6.0]
[1642176343571,9.79,147.06,146.95,2.72]
[1642176343970,9.79,147.06,146.95,8.72]
[1642176344171,9.79,147.06,146.95,12.57772929]
[1642176344571,19.9926,147.06,146.95,6.57772929]
[1642176344772,21.69337588,147.06,146.95,6.57772929]
[1642176344971,2.72,147.05,146.95,6.57772929]
[1642176345173,9.79,147.04,146.95,6.57772929]
[1642176345372,9.79,147.04,146.96,3.88738979]
[1642176345574,10.2058,147.02,146.96,3.88738979]
[1642176345973,10.4558,147.02,146.96,10.13738979]
[1642176346174,10.2058,147.02,146.96,6.25]
[1642176346372,10.4558,147.02,146.96,0.25]
[1642176346574,10.4558,147.02,146.95,2.97]
[1642176346875,10.4558,147.02,146.95,0.25]
[1642176347074,10.4558,147.02,146.92,4.10772929]
[1642176347473,10.4558,147.02,146.92,20.31432929]
[1642176347676,10.4558,147.02,146.92,14.31432929]
[1642176347877,10.4558,147.02,146.92,20.31432929]
[1642176348074,10.2058,147.02,146.92,20.31432929]
[1642176348477,10.2058,147.02,146.93,3.88810175]
[1642176348677,10.2058,147.02,146.94,2.721]
[1642176349175,19.9945,147.04,146.95,25.29108391]
[1642176349375,19.9945,147.04,146.95,31.29108391]
[1642176349576,20.2445,147.04,146.95,31.54108391]
[1642176349774,10.04,147.04,146.95,41.74538391]
[1642176350675,9.79,147.04,146.95,41.74538391]
[1642176350878,24.0197,147.05,146.95,41.74538391]
[1642176351075,24.2697,147.05,146.95,41.74538391]
[1642176351478,24.0197,147.05,146.95,41.74538391]
[1642176352080,43.0413,147.06,146.96,2.721]
[1642176352278,23.0481,147.06,146.98,10.202]
[1642176352478,10.202,147.07,146.98,16.452]
[1642176352681,10.202,147.07,146.99,2.72]
[1642176352881,19.992,147.07,146.99,2.72]
[1642176353078,19.992,147.07,146.99,2.97]
[1642176353279,19.992,147.07,146.99,0.25]
[1642176353478,19.992,147.07,146.98,10.2025]
[1642176353680,21.69277588,147.07,146.96,6.57772929]
[1642176353879,10.2039,147.05,146.96,9.85772929]
[1642176354079,10.4539,147.05,146.96,9.85772929]
[1642176354280,12.15467588,147.05,146.96,9.85772929]
[1642176354506,12.51,147.04,146.96,9.85772929]
[1642176354910,20.46077588,147.04,146.96,9.85772929]
[1642176355312,20.46077588,147.04,146.96,6.0]
[1642176355507,20.46077588,147.04,146.92,20.06412929]
[1642176356410,10.2072,147.0,146.92,20.06412929]
[1642176356710,10.2072,147.0,146.92,16.2064]
[1642176357308,10.4572,147.0,146.92,16.2064]
[1642176357709,10.4572,147.0,146.92,6.0]
[1642176358208,10.4572,147.0,146.91,9.85772929]
[1642176358409,10.4572,147.0,146.91,4.10772929]
[1642176358609,10.4572,147.0,146.91,10.10772929]
[1642176358910,10.4572,147.0,146.91,6.25]
[1642176359110,10.4572,147.0,146.9,9.85772929]
[1642176359309,10.4572,147.0,146.9,3.85772929]
[1642176359509,20.2472,147.0,146.9,3.85772929]
[1642176359709,72.42277588,146.99,146.9,3.85772929]
[1642176359909,10.2127,146.95,146.9,3.85772929]
[1642176360512,10.4627,146.95,146.9,3.85772929]
[1642176360710,10.4627,146.95,146.84,10.2121]
[1642176360711,10.2127,146.95,146.85,7.74770342]
[1642176360910,10.4627,146.95,146.87,6.25]
[1642176361110,10.4627,146.95,146.87,6.0]
[1642176361311,20.2527,146.95,146.85,7.74770342]
[1642176361513,10.2142,146.9,146.85,7.74770342]
[1642176362713,10.2142,146.9,146.85,9.85772929]
[1642176362913,9.79,146.89,146.85,9.85772929]
[1642176363117,10.2165,146.87,146.85,3.85772929]
[1642176363313,6.06219997,146.86,146.85,3.85772929]
[1642176363915,6.06219997,146.86,146.82,3.85772929]
[1642176364116,16.27869997,146.86,146.82,3.85772929]
[1642176364514,16.27869997,146.86,146.82,9.85772929]
[1642176364715,16.27869997,146.86,146.82,3.85772929]
[1642176365315,16.52869997,146.86,146.8,7.74901515]
[1642176365516,9.79,146.85,146.8,7.74901515]
[1642176365818,10.2193,146.83,146.8,7.74901515]
[1642176366017,6.06219997,146.82,146.8,7.74901515]
[1642176366617,20.0065,146.87,146.8,3.85772929]
[1642176366817,9.79,146.87,146.8,6.049]
[1642176367217,9.79,146.87,146.8,22.2643]
[1642176367416,9.79,146.87,146.81,2.724]
[1642176367617,9.79,146.87,146.81,2.974]
[1642176367816,9.79,146.87,146.81,12.86532847]
[1642176368616,9.79,146.87,146.81,12.61532847]
[1642176368816,9.79,146.87,146.81,3.89132847]
[1642176369016,9.79,146.87,146.82,7.74905776]
[1642176369017,20.0061,146.87,146.82,7.74905776]
[1642176369618,9.79,146.87,146.83,31.50795846]
[1642176369818,9.79,146.91,146.83,31.50795846]
[1642176370019,9.79,146.91,146.83,40.23095846]
[1642176370219,2.723,146.94,146.83,40.23095846]
[1642176370420,3.5051288,146.95,146.83,42.41936931]
[1642176370624,3.5051288,146.97,146.85,10.2119]
[1642176370822,3.5051288,146.97,146.86,2.722]
[1642176371023,3.5051288,146.97,146.86,78.91041085]
[1642176371425,3.5051288,146.97,146.87,1.67841085]
[1642176371622,3.5051288,146.97,146.88,2.722]
[1642176371823,9.79,146.98,146.91,10.206]
[1642176372022,9.79,146.98,146.91,0.25]
[1642176372625,9.79,146.98,146.88,2.722]
[1642176372822,2.722,146.97,146.87,7.74727932]
[1642176373022,2.722,146.97,146.86,9.85772929]
[1642176373023,2.972,146.97,146.86,9.85772929]
[1642176373224,2.722,146.97,146.86,6.57972929]
[1642176373426,12.762,146.97,146.86,12.57972929]
[1642176373628,10.04,146.97,146.86,3.85772929]
[1642176373926,2.722,146.96,146.86,3.85772929]
[1642176374125,20.0004,146.95,146.86,3.85772929]
[1642176374324,20.0004,146.95,146.85,3.85772929]
[1642176374527,2.722,146.94,146.85,3.85772929]
[1642176375027,2.722,146.94,146.85,4.10772929]
[1642176375429,10.2136,146.91,146.85,4.10772929]
[1642176375829,10.2136,146.91,146.83,12.9348]
[1642176376030,10.2136,146.91,146.83,18.9348]
[1642176377030,10.2136,146.91,146.83,19.1848]
[1642176378129,10.2136,146.91,146.83,16.4628]
[1642176378328,10.2136,146.91,146.83,6.25]
[1642176378532,20.0036,146.91,146.82,8.723]
[1642176378733,2.723,146.9,146.81,3.85772929]
[1642176378931,10.2171,146.86,146.81,3.85772929]
[1642176379432,10.2171,146.86,146.81,2.85772929]
[1642176379631,10.4671,146.86,146.81,2.85772929]
[1642176380032,10.4671,146.86,146.76,0.34056062]
[1642176380864,10.4671,146.86,146.76,23.7316598]
[1642176381065,10.2171,146.86,146.76,23.9816598]
[1642176381267,10.2171,146.86,146.77,5.5747865]
[1642176381563,9.79,146.87,146.79,10.2157]
[1642176381963,9.79,146.87,146.79,16.4657]
[1642176382964,9.79,146.87,146.8,14.10684114]
[1642176383165,9.79,146.87,146.8,3.89204114]
[1642176383367,9.79,146.87,146.8,4.14204114]
[1642176383565,10.04,146.87,146.8,4.14204114]
[1642176383768,20.2558,146.87,146.8,4.14204114]
[1642176383972,20.2558,146.87,146.8,0.25]
[1642176384267,20.2558,146.87,146.76,32.4556598]
[1642176384466,2.724,146.86,146.76,29.7316598]
[1642176384665,10.04,146.87,146.78,10.2162]
[1642176384867,0.25,146.86,146.78,10.2162]
[1642176385065,9.79,146.87,146.78,16.2162]
[1642176385266,10.04,146.87,146.78,16.2162]
[1642176385867,9.79,146.87,146.78,16.2162]
[1642176386067,10.04,146.87,146.78,16.4662]
[1642176386468,10.2169,146.86,146.78,16.4662]
[1642176386667,10.2169,146.86,146.78,16.2162]
[1642176386868,10.4669,146.86,146.78,6.0]
[1642176387070,10.4669,146.86,146.77,8.724]
[1642176387269,2.724,146.85,146.76,0.34056062]
[1642176387468,2.974,146.85,146.76,0.34056062]
[1642176387870,10.2192,146.83,146.76,0.34056062]
[1642176388857,24.4355,146.86,146.76,3.06456062]
[1642176389058,24.4355,146.86,146.76,9.31456062]
[1642176389655,10.2178,146.85,146.76,19.53256062]
[1642176390056,24.4355,146.86,146.76,19.53256062]
[1642176390456,24.6855,146.86,146.76,19.53256062]
[1642176390655,0.25,146.86,146.76,19.53256062]
[1642176391462,10.04,146.87,146.8,1.94645579]
[1642176391658,10.04,146.87,146.8,12.16145579]
[1642176391856,10.04,146.87,146.8,12.41145579]
[1642176392456,10.04,146.87,146.81,1.94645579]
[1642176392858,10.04,146.87,146.81,2.19645579]
[1642176394561,10.04,146.87,146.81,30.44867662]
[1642176394859,9.79,146.87,146.81,1.94645579]
[1642176395459,20.0065,146.87,146.81,1.94645579]
[1642176395862,20.0065,146.87,146.8,1.94645579]
[1642176396164,20.2565,146.87,146.8,1.94645579]
[1642176396362,9.79,146.87,146.8,1.94645579]
[1642176396564,48.7783,146.89,146.8,1.94645579]
[1642176396763,48.7783,146.89,146.8,12.16185579]
[1642176396962,9.79,146.9,146.8,18.41185579]
[1642176398062,9.79,146.9,146.83,1.94645579]
[1642176398262,9.79,146.9,146.84,10.2125]
[1642176398461,9.79,146.9,146.84,10.4625]
[1642176399264,9.79,146.9,146.85,30.75935727]
[1642176399465,9.79,146.9,146.85,10.4619]
[1642176399665,9.79,146.9,146.85,0.25]
[1642176400568,9.79,146.9,146.85,27.20681455]
[1642176400771,9.79,146.9,146.84,0.25]
[1642176401071,10.04,146.9,146.83,8.19645579]
[1642176401272,2.723,146.89,146.83,1.94645579]
[1642176401572,2.973,146.89,146.83,1.94645579]
[1642176401870,2.723,146.89,146.83,1.94645579]
[1642176402071,12.513,146.92,146.83,1.94645579]
[1642176402270,9.79,146.92,146.83,1.94645579]
[1642176402472,11.56086289,146.92,146.82,2.723]
[1642176402672,11.56086289,146.92,146.82,8.973]
[1642176402872,11.56086289,146.92,146.82,2.973]
[1642176403072,11.56086289,146.92,146.83,10.2132]
[1642176403573,9.79,146.92,146.84,1.94645579]
[1642176403775,9.79,146.92,146.84,4.66945579]
[1642176403973,9.79,146.92,146.84,10.91945579]
[1642176404177,9.79,146.92,146.84,8.19645579]
[1642176404673,10.04,146.92,146.84,8.19645579]
[1642176404874,10.04,146.92,146.86,10.2109]
[1642176405073,10.04,146.92,146.87,30.08862367]
[1642176405474,10.04,146.92,146.87,30.33862367]
[1642176406576,1.77086289,146.94,146.87,40.54902367]
[1642176406975,1.77086289,146.94,146.87,46.54902367]
[1642176407174,1.77086289,146.95,146.88,2.722]
[1642176407574,1.77086289,146.95,146.88,8.972]
[1642176407778,1.77086289,146.95,146.91,10.2072]
[1642176407979,1.77086289,146.95,146.91,10.4572]
[1642176408375,1.77086289,146.98,146.91,10.4572]
[1642176408976,2.02086289,146.98,146.9,2.722]
[1642176409177,2.722,146.97,146.89,12.15505579]
[1642176409378,2.722,146.97,146.89,18.15505579]
[1642176409576,2.972,146.97,146.89,18.15505579]
[1642176410577,2.972,146.97,146.89,18.40505579]
[1642176410776,4.49286289,146.97,146.89,16.4586]
[1642176410978,2.02086289,146.97,146.89,16.4586]
[1642176411380,1.77086289,146.97,146.89,16.4586]
[1642176412680,1.77086289,146.98,146.89,16.4586]
[1642176412882,1.77086289,146.98,146.89,25.8716]
[1642176413482,2.02086289,146.98,146.89,26.1316]
[1642176413683,2.02086289,146.98,146.89,25.8716]
[1642176413884,2.02086289,146.98,146.89,19.1806]
[1642176414084,0.25,146.98,146.89,10.91845579]
[1642176414284,2.722,146.97,146.89,1.94645579]
[1642176414513,2.972,146.97,146.89,1.94645579]
[1642176414711,0.25,146.97,146.89,1.94645579]
[1642176415112,0.25,146.97,146.87,42.24507946]
[1642176415315,12.9325,146.96,146.87,42.24507946]
[1642176415513,13.1825,146.96,146.87,42.24507946]
[1642176416114,13.1825,146.96,146.87,12.40645579]
[1642176416314,24.74336289,146.96,146.86,1.94645579]
[1642176416514,32.44413877,146.96,146.86,1.94645579]
[1642176417415,32.44413877,146.96,146.82,26.70560632]
[1642176417416,1.77086289,146.94,146.84,1.94645579]
[1642176417615,2.723,146.93,146.84,1.94645579]
[1642176417815,10.2138,146.91,146.84,1.94645579]
[1642176418117,10.4638,146.91,146.84,2.19645579]
[1642176418518,10.4638,146.91,146.84,1.94645579]
[1642176418719,2.723,146.9,146.84,1.94645579]
[1642176418917,10.2159,146.88,146.84,1.94645579]
[1642176419524,10.4659,146.88,146.84,1.94645579]
[1642176419720,10.4659,146.88,146.81,1.94645579]
[1642176420118,10.4659,146.88,146.81,2.19645579]
[1642176420720,9.79,146.9,146.81,12.41115579]
[1642176420918,20.0045,146.9,146.81,12.41115579]
[1642176421122,9.79,146.9,146.81,12.41115579]
[1642176421319,10.04,146.9,146.81,12.41115579]
[1642176421720,10.04,146.9,146.83,1.94645579]
[1642176422124,10.04,146.9,146.83,2.19645579]
[1642176423422,20.2539,146.9,146.83,2.19645579]
[1642176423627,20.2539,146.9,146.83,12.40965579]
[1642176423822,10.04,146.9,146.83,12.40965579]
[1642176424738,9.79,146.9,146.83,12.40965579]
[1642176425624,27.98726289,146.93,146.83,12.40965579]
[1642176425824,25.26426289,146.93,146.84,4.40987432]
[1642176426125,25.26426289,146.93,146.87,10.2104]
[1642176426325,1.77086289,146.94,146.87,10.2104]
[1642176426523,1.77086289,146.94,146.87,10.4604]
[1642176426926,1.77086289,146.94,146.87,85.7744]
[1642176427124,1.77086289,146.96,146.87,23.7744]
[1642176428025,1.77086289,146.96,146.87,16.4604]
[1642176428226,48.4823,146.97,146.88,1.94645579]
[1642176428526,61.6636,146.97,146.88,12.40585579]
[1642176428726,12.9313,146.97,146.88,12.40585579]
[1642176429126,14.70216289,146.97,146.88,12.40585579]
[1642176429327,24.49216289,146.97,146.88,1.94645579]
[1642176429727,30.49216289,146.97,146.88,1.94645579]
[1642176430126,30.74216289,146.97,146.88,1.94645579]
[1642176430626,30.74216289,146.97,146.83,2.722]
[1642176430627,30.74216289,146.97,146.86,1.94645579]
[1642176430827,1.77086289,146.95,146.86,1.94645579]
[1642176431028,10.2125,146.93,146.86,1.94645579]
[1642176431428,10.4625,146.93,146.86,2.19645579]
[1642176431627,20.2525,146.93,146.86,2.19645579]
[1642176432028,26.2525,146.93,146.86,0.25]
[1642176432227,2.723,146.92,146.86,0.25]
[1642176432431,10.2138,146.91,146.84,2.19645579]
[1642176432830,10.4638,146.91,146.84,2.19645579]
[1642176433130,10.2138,146.91,146.84,2.19645579]
[1642176433331,2.723,146.92,146.84,2.19645579]
[1642176433532,11.56086289,146.93,146.84,2.19645579]
[1642176434031,17.56086289,146.93,146.84,2.19645579]
[1642176434230,15.79,146.93,146.84,2.19645579]
[1642176434431,26.0024,146.93,146.84,12.40905579]
[1642176434732,26.0024,146.93,146.84,1.94645579]
[1642176434935,26.2524,146.93,146.84,1.94645579]
[1642176435932,2.723,146.92,146.84,1.94645579]
[1642176436134,10.2158,146.88,146.84,1.94645579]
[1642176436533,10.4658,146.88,146.83,1.94645579]
[1642176436935,26.2558,146.88,146.83,1.94645579]
[1642176437132,2.723,146.87,146.83,1.94645579]
[1642176437337,10.2197,146.85,146.83,5.579e-05]
[1642176437536,41.78619997,146.84,146.79,2.723]
[1642176437737,41.78619997,146.84,146.78,5.78081799]
[1642176437933,9.79,146.83,146.76,0.34056062]
[1642176438137,2.724,146.82,146.76,0.34056062]
[1642176438533,8.724,146.82,146.76,0.34056062]
[1642176439335,18.9447,146.82,146.76,0.34056062]
[1642176439733,16.2207,146.82,146.76,0.34056062]
[1642176439933,16.4707,146.82,146.76,0.34056062]
[1642176443143,10.4707,146.82,146.76,0.34056062]
[1642176443440,43.8622,146.83,146.76,0.34056062]
[1642176443441,9.79,146.83,146.76,25.20783112]
[1642176443635,9.79,146.83,146.77,2.724]
[1642176443837,15.79,146.83,146.77,2.724]
[1642176444036,9.79,146.83,146.77,2.974]
[1642176444336,9.79,146.83,146.77,2.724]
[1642176444539,20.009,146.83,146.77,2.724]
[1642176444935,20.259,146.83,146.76,0.34056062]
[1642176445841,20.009,146.83,146.76,0.34056062]
[1642176446241,134.9957,146.87,146.76,0.34056062]
[1642176446441,84.6109,146.87,146.77,1.68687432]
[1642176446641,9.79,146.87,146.77,1.68687432]
[1642176446845,9.79,146.87,146.77,7.93687432]
[1642176447243,9.79,146.87,146.77,6.25]
[1642176447643,9.79,146.87,146.8,10.2153]
[1642176447844,9.79,146.9,146.81,30.80561314]
[1642176448044,15.79,146.9,146.81,39.77861314]
[1642176449444,15.79,146.9,146.83,10.2129]
[1642176449847,15.79,146.9,146.81,33.77861314]
[1642176450047,2.723,146.89,146.81,31.05561314]
[1642176450248,2.973,146.89,146.81,30.80561314]
[1642176450447,18.763,146.89,146.81,30.80561314]
[1642176451251,18.763,146.89,146.76,27.59556062]
[1642176451451,10.2156,146.88,146.76,33.84556062]
[1642176451649,2.724,146.87,146.76,33.84556062]
[1642176451849,2.724,146.87,146.76,9.31356062]
[1642176452056,2.974,146.87,146.76,9.31356062]
[1642176452250,0.25,146.87,146.77,23.38999413]
[1642176452453,0.25,146.87,146.77,43.74954698]
[1642176453050,2.974,146.88,146.77,39.85679413]
[1642176453254,0.25,146.88,146.77,39.85679413]
[1642176454152,18.764,146.89,146.77,39.85679413]
[1642176454352,10.2162,146.87,146.79,10.2161]
[1642176454553,0.25,146.87,146.79,10.4661]
[1642176454954,0.25,146.87,146.79,0.25]
[1642176455557,10.4662,146.87,146.79,0.25]
[1642176455777,10.2162,146.87,146.78,2.974]
[1642176455979,2.724,146.86,146.78,0.25]
[1642176456576,2.974,146.86,146.78,10.2166]
[1642176456977,2.974,146.86,146.78,10.4666]
[1642176457478,0.25,146.86,146.78,13.1906]
[1642176457777,26.0055,146.89,146.78,13.1906]
[1642176457977,26.0055,146.89,146.78,19.1906]
[1642176458780,26.0055,146.89,146.78,18.9406]
[1642176459180,2.724,146.88,146.78,16.2166]
[1642176459380,10.2162,146.87,146.78,16.2166]
[1642176459579,10.4662,146.87,146.78,16.2166]
[1642176460179,10.4662,146.87,146.77,2.724]
[1642176460381,2.724,146.86,146.77,6.25]
[1642176460681,10.2195,146.83,146.77,0.25]
[1642176461081,10.4695,146.83,146.77,0.25]
[1642176461280,11.24021098,146.83,146.77,0.25]
[1642176461480,11.24021098,146.83,146.76,0.34056062]
[1642176462083,21.03021098,146.83,146.76,0.34056062]
[1642176462282,2.724,146.82,146.76,0.34056062]
[1642176462485,10.2221,146.79,146.76,0.34056062]
[1642176462683,6.06219997,146.78,146.76,0.34056062]
[1642176462883,8.78719997,146.78,146.72,6.0]
[1642176463084,9.03719997,146.78,146.7,25.51959407]
[1642176463286,6.31219997,146.78,146.7,25.51959407]
[1642176463487,10.2234,146.77,146.7,31.51959407]
[1642176463684,0.25,146.78,146.7,31.51959407]
[1642176463886,0.25,146.77,146.7,31.51959407]
[1642176464087,0.25,146.78,146.7,31.51959407]
[1642176465087,10.2225,146.78,146.7,41.74199407]
[1642176465287,10.2225,146.78,146.7,41.99199407]
[1642176465487,10.4725,146.78,146.71,2.725]
[1642176465686,10.4725,146.78,146.71,6.61916683]
[1642176465887,10.4725,146.78,146.71,12.86916683]
[1642176466486,10.4725,146.78,146.71,8.975]
[1642176467087,10.2215,146.8,146.71,8.975]
[1642176467688,12.515,146.81,146.71,8.975]
[1642176467989,9.79,146.81,146.71,20.89727588]
[1642176468191,9.79,146.81,146.71,19.1965]
[1642176468389,9.79,146.81,146.72,3.89371156]
[1642176468591,9.79,146.81,146.72,10.14371156]
[1642176468792,9.79,146.81,146.73,26.23853296]
[1642176468990,10.04,146.81,146.74,2.725]
[1642176469189,10.04,146.81,146.73,35.21353296]
[1642176469391,10.04,146.81,146.73,33.10724452]
[1642176469591,10.04,146.81,146.73,30.38224452]
[1642176469794,9.79,146.81,146.74,10.219]
[1642176469992,12.515,146.85,146.74,19.194]
[1642176470192,9.79,146.85,146.74,19.194]
[1642176470394,16.04,146.85,146.74,19.194]
[1642176470593,16.04,146.85,146.74,2.975]
[1642176470791,3.17804781,146.84,146.74,2.725]
[1642176470994,10.221,146.81,146.73,26.23853296]
[1642176471195,10.221,146.81,146.72,3.89368493]
[1642176471394,10.471,146.81,146.72,9.89368493]
[1642176471597,2.725,146.8,146.72,3.89368493]
[1642176471892,2.725,146.8,146.72,9.89368493]
[1642176472093,2.975,146.8,146.72,9.89368493]
[1642176472296,10.223,146.78,146.72,9.89368493]
[1642176472492,10.473,146.78,146.72,9.89368493]
[1642176472697,16.473,146.78,146.72,6.0]
[1642176473094,10.473,146.78,146.7,9.89368493]
[1642176473294,10.473,146.78,146.7,3.89368493]
[1642176473493,10.473,146.78,146.7,9.89368493]
[1642176473693,10.473,146.78,146.7,6.0]
[1642176473897,10.473,146.78,146.7,6.25]
[1642176474094,10.473,146.78,146.7,0.25]
[1642176474895,9.79,146.8,146.7,10.2222]
[1642176475095,20.0114,146.8,146.71,33.07516995]
[1642176475495,20.0114,146.8,146.71,39.32516995]
[1642176475694,20.0114,146.8,146.71,36.60016995]
[1642176476398,20.0114,146.8,146.71,46.82176995]
[1642176476596,20.2614,146.8,146.71,46.82176995]
[1642176476797,20.2614,146.8,146.71,16.4716]
[1642176477498,26.2614,146.8,146.71,16.4716]
[1642176477899,20.2614,146.8,146.71,16.4716]
[1642176478299,88.2614,146.8,146.71,6.0]
[1642176478498,94.2614,146.8,146.7,12.61868493]
[1642176478700,2.725,146.79,146.7,3.89368493]
[1642176478902,10.2244,146.76,146.7,9.89368493]
[1642176479099,10.2244,146.76,146.7,6.0]
[1642176479498,10.4744,146.76,146.68,9.89368493]
[1642176479699,10.4744,146.76,146.68,3.89368493]
[1642176479898,10.4744,146.76,146.68,9.89368493]
[1642176480300,10.4744,146.76,146.68,6.0]
[1642176480498,10.4744,146.76,146.67,16.2241]
[1642176481403,10.4744,146.76,146.68,29.06468518]
[1642176481601,10.4744,146.76,146.68,39.28818518]
[1642176481803,0.25,146.76,146.68,45.53818518]
[1642176482033,2.976,146.77,146.68,45.53818518]
[1642176482201,0.25,146.77,146.68,45.53818518]
[1642176482402,12.766,146.78,146.68,45.53818518]
[1642176483202,12.516,146.78,146.68,45.53818518]
[1642176483403,10.2233,146.77,146.68,45.53818518]
[1642176484803,10.2233,146.77,146.68,48.26418518]
[1642176485404,9.79,146.78,146.68,49.96496106]
[1642176485602,49.3619,146.79,146.68,49.96496106]
[1642176485802,49.6119,146.79,146.68,49.96496106]
[1642176486403,0.25,146.79,146.69,7.78802059]
[1642176486605,0.25,146.79,146.71,10.2215]
[1642176486802,20.2612,146.8,146.71,32.79312752]
[1642176487003,20.0112,146.8,146.71,39.04312752]
[1642176488004,20.0112,146.8,146.72,2.725]
[1642176488507,20.2612,146.8,146.72,8.975]
[1642176488704,20.2612,146.8,146.72,2.975]
[1642176488903,20.2612,146.8,146.72,8.975]
[1642176489303,20.2612,146.8,146.72,6.25]